[Event "Early-Titled-Tuesday-Blitz-October-24-2023"]
[Site "Chess.com"]
[Date "2023.10.24"]
[Round "7"]
[White "Xqswdc"]
[Black "abelmat"]
[Result "1-0"]
[WhiteElo "2339"]
[BlackElo "2006"]
[TimeControl "180+1"]
[EndTime "9:14:18 PDT"]
[Termination "Xqswdc won on time"]

1. e4 {[%clk 0:03:00.9]} 1... e6 {[%clk 0:02:59.1]} 2. d3 {[%clk 0:02:55.9]}
2... d5 {[%clk 0:03:00]} 3. Nd2 {[%clk 0:02:56.8]} 3... Nf6 {[%clk 0:02:57.6]}
4. Ngf3 {[%clk 0:02:56.1]} 4... Nc6 {[%clk 0:02:56.3]} 5. g3 {[%clk 0:02:48.3]}
5... dxe4 {[%clk 0:02:56.1]} 6. dxe4 {[%clk 0:02:47.3]} 6... e5 {[%clk 0:02:57]}
7. Bg2 {[%clk 0:02:44.9]} 7... Bc5 {[%clk 0:02:57.4]} 8. O-O {[%clk 0:02:11.3]}
8... O-O {[%clk 0:02:57.5]} 9. h3 {[%clk 0:02:04.4]} 9... a5 {[%clk 0:02:56.9]}
10. Qe2 {[%clk 0:01:57.5]} 10... b6 {[%clk 0:02:56.8]} 11. Rd1 {[%clk
0:01:56.5]} 11... Ba6 {[%clk 0:02:54.8]} 12. Qe1 {[%clk 0:01:55.3]} 12... Qe7
{[%clk 0:02:45.7]} 13. Nb3 {[%clk 0:01:53.1]} 13... Rad8 {[%clk 0:02:37.9]} 14.
Nxc5 {[%clk 0:01:42.5]} 14... Qxc5 {[%clk 0:02:36.8]} 15. Be3 {[%clk 0:01:26.2]}
15... Qb4 {[%clk 0:02:10.6]} 16. Qxb4 {[%clk 0:01:10.3]} 16... Nxb4 {[%clk
0:01:59.5]} 17. Nxe5 {[%clk 0:01:09.2]} 17... Nxc2 {[%clk 0:01:47.6]} 18. Rac1
{[%clk 0:01:05.6]} 18... Nxe3 {[%clk 0:01:42.7]} 19. fxe3 {[%clk 0:01:06.5]}
19... c5 {[%clk 0:01:40.1]} 20. Nc6 {[%clk 0:01:02.7]} 20... Rde8 {[%clk
0:01:17.9]} 21. e5 {[%clk 0:01:01.7]} 21... Nh5 {[%clk 0:00:45.2]} 22. g4 {[%clk
0:01:01.4]} 22... Ng3 {[%clk 0:00:42.9]} 23. Kf2 {[%clk 0:01:01.5]} 23... Ne2
{[%clk 0:00:23.6]} 24. Rc2 {[%clk 0:01:01.2]} 24... f6 {[%clk 0:00:18.3]} 25. e6
{[%clk 0:00:54.5]} 25... Rxe6 {[%clk 0:00:16.2]} 26. Bd5 {[%clk 0:00:54.4]}
26... Re8 {[%clk 0:00:09]} 27. Nd8 {[%clk 0:00:54.5]} 27... Bc8 {[%clk
0:00:05.5]} 28. Rxe2 {[%clk 0:00:50.7]} 1-0

[Event "Early-Titled-Tuesday-Blitz-October-24-2023"]
[Site "Chess.com"]
[Date "2023.10.24"]
[Round "7"]
[White "viktorgen2021"]
[Black "Keeper0416"]
[Result "1/2-1/2"]
[WhiteElo "2438"]
[BlackElo "2579"]
[TimeControl "180+1"]
[EndTime "9:14:20 PDT"]
[Termination "Game drawn by agreement"]

1. Nf3 {[%clk 0:02:52.2]} 1... g6 {[%clk 0:02:58.8]} 2. c4 {[%clk 0:02:51.3]}
2... Bg7 {[%clk 0:02:59.7]} 3. g3 {[%clk 0:02:50.9]} 3... Nf6 {[%clk 0:02:59.1]}
4. Bg2 {[%clk 0:02:51.6]} 4... O-O {[%clk 0:02:59.5]} 5. O-O {[%clk 0:02:52.3]}
5... c5 {[%clk 0:02:55.2]} 6. Nc3 {[%clk 0:02:52.7]} 6... Nc6 {[%clk 0:02:55.5]}
7. Rb1 {[%clk 0:02:53.3]} 7... d5 {[%clk 0:02:53.6]} 8. cxd5 {[%clk 0:02:53.4]}
8... Nxd5 {[%clk 0:02:54.5]} 9. a3 {[%clk 0:02:51.6]} 9... Bf5 {[%clk
0:02:52.9]} 10. Ra1 {[%clk 0:02:42.8]} 10... Nxc3 {[%clk 0:02:49.2]} 11. bxc3
{[%clk 0:02:42]} 11... Qd7 {[%clk 0:02:47.3]} 12. a4 {[%clk 0:02:35.8]} 12...
Rfd8 {[%clk 0:02:41.3]} 13. Qb3 {[%clk 0:02:28.2]} 13... Be6 {[%clk 0:02:23.5]}
14. Qc2 {[%clk 0:02:21.3]} 14... Rac8 {[%clk 0:02:21.5]} 15. Rd1 {[%clk
0:02:19.5]} 15... Bh3 {[%clk 0:02:21.1]} 16. Bh1 {[%clk 0:02:17.8]} 16... c4
{[%clk 0:02:17.3]} 17. Ba3 {[%clk 0:02:02.2]} 17... Bf5 {[%clk 0:02:10.6]} 18.
Qb2 {[%clk 0:01:52.9]} 18... Be4 {[%clk 0:02:09.1]} 19. Ng5 {[%clk 0:01:34.6]}
19... Bxh1 {[%clk 0:02:07.5]} 20. Kxh1 {[%clk 0:01:35.5]} 20... Qf5 {[%clk
0:02:03.8]} 21. Nf3 {[%clk 0:01:26.7]} 21... b6 {[%clk 0:01:51.6]} 22. Qb5
{[%clk 0:01:20.4]} 22... Qe4 {[%clk 0:01:42.6]} 23. Re1 {[%clk 0:01:12.4]} 23...
Rd5 {[%clk 0:01:27.7]} 24. Qb1 {[%clk 0:01:10.4]} 24... Qxb1 {[%clk 0:01:25.6]}
25. Rexb1 {[%clk 0:01:10.2]} 25... Na5 {[%clk 0:01:23.2]} 26. Rb5 {[%clk
0:01:08.9]} 26... Rcd8 {[%clk 0:01:21.5]} 27. Bxe7 {[%clk 0:01:07]} 27... Rxb5
{[%clk 0:01:21.4]} 28. axb5 {[%clk 0:01:00.7]} 28... Re8 {[%clk 0:01:21.3]} 29.
Bb4 {[%clk 0:01:01.2]} 29... Rxe2 {[%clk 0:01:13.2]} 30. Kg2 {[%clk 0:00:54.6]}
30... Bf8 {[%clk 0:00:59.9]} 31. Bxa5 {[%clk 0:00:50.3]} 31... bxa5 {[%clk
0:00:59.4]} 32. Rxa5 {[%clk 0:00:23.5]} 32... Bc5 {[%clk 0:00:59.1]} 33. Nd4
{[%clk 0:00:23.9]} 33... Rxd2 {[%clk 0:00:58.4]} 34. Ra4 {[%clk 0:00:24.2]}
34... Bxd4 {[%clk 0:00:49.3]} 35. cxd4 {[%clk 0:00:25.1]} 35... c3 {[%clk
0:00:49.8]} 36. Rxa7 {[%clk 0:00:24.4]} 36... Rxd4 {[%clk 0:00:48.8]} 37. Rc7
{[%clk 0:00:23.7]} 37... Rb4 {[%clk 0:00:48.7]} 38. Rxc3 {[%clk 0:00:22.3]}
38... Rxb5 {[%clk 0:00:49.1]} 39. h4 {[%clk 0:00:22.9]} 39... h5 {[%clk
0:00:48.7]} 1/2-1/2

[Event "Early-Titled-Tuesday-Blitz-October-24-2023"]
[Site "Chess.com"]
[Date "2023.10.24"]
[Round "7"]
[White "LeoLV10"]
[Black "publicaccountcze"]
[Result "1-0"]
[WhiteElo "2559"]
[BlackElo "2312"]
[TimeControl "180+1"]
[EndTime "9:14:21 PDT"]
[Termination "LeoLV10 won on time"]

1. e4 {[%clk 0:03:00.9]} 1... e6 {[%clk 0:03:00]} 2. d4 {[%clk 0:03:00.8]} 2...
d5 {[%clk 0:03:00.9]} 3. e5 {[%clk 0:03:01.5]} 3... c5 {[%clk 0:03:00.6]} 4. c3
{[%clk 0:03:02.1]} 4... Nc6 {[%clk 0:03:01.2]} 5. Nf3 {[%clk 0:03:02.3]} 5...
Qb6 {[%clk 0:03:01.7]} 6. a3 {[%clk 0:03:01.1]} 6... Nh6 {[%clk 0:03:00.9]} 7.
Bd3 {[%clk 0:02:52.4]} 7... Bd7 {[%clk 0:02:55.9]} 8. O-O {[%clk 0:02:51.1]}
8... cxd4 {[%clk 0:02:48]} 9. Re1 {[%clk 0:02:51]} 9... dxc3 {[%clk 0:02:29.3]}
10. Nxc3 {[%clk 0:02:50.9]} 10... Be7 {[%clk 0:02:08.6]} 11. Rb1 {[%clk
0:02:06.5]} 11... Ng4 {[%clk 0:01:40.5]} 12. Qe2 {[%clk 0:02:00.7]} 12... h5
{[%clk 0:01:39]} 13. h3 {[%clk 0:02:00.7]} 13... Nh6 {[%clk 0:01:27.2]} 14. Rd1
{[%clk 0:01:58.1]} 14... g6 {[%clk 0:01:23.9]} 15. b4 {[%clk 0:01:47.2]} 15...
Nf5 {[%clk 0:01:21.6]} 16. Bb2 {[%clk 0:01:30.1]} 16... Rc8 {[%clk 0:00:47.8]}
17. Nxd5 {[%clk 0:01:24.9]} 17... exd5 {[%clk 0:00:42]} 18. e6 {[%clk
0:01:25.1]} 18... fxe6 {[%clk 0:00:25.9]} 19. Bxh8 {[%clk 0:01:24]} 19... Kf7
{[%clk 0:00:26.8]} 20. Ne5+ {[%clk 0:01:20.3]} 20... Nxe5 {[%clk 0:00:26.3]} 21.
Bxe5 {[%clk 0:01:20]} 21... Bf6 {[%clk 0:00:18]} 22. Bxf5 {[%clk 0:01:18.9]}
22... exf5 {[%clk 0:00:09.3]} 23. Rxd5 {[%clk 0:01:16.4]} 23... Be6 {[%clk
0:00:06.7]} 24. Rd6 {[%clk 0:01:12.6]} 24... Rc6 {[%clk 0:00:06.8]} 25. Bd4
{[%clk 0:01:01.6]} 25... Bxd4 {[%clk 0:00:05.6]} 26. Qxe6+ {[%clk 0:01:01.4]}
26... Kf8 {[%clk 0:00:05.1]} 27. Rxc6 {[%clk 0:00:53.6]} 27... Qxc6 {[%clk
0:00:05.5]} 28. Qxc6 {[%clk 0:00:52.1]} 28... bxc6 {[%clk 0:00:06.4]} 29. Rd1
{[%clk 0:00:52]} 29... c5 {[%clk 0:00:04.2]} 30. bxc5 {[%clk 0:00:51.5]} 30...
Bxc5 {[%clk 0:00:03.9]} 31. a4 {[%clk 0:00:51.8]} 31... a5 {[%clk 0:00:04.3]}
32. Rd5 {[%clk 0:00:52]} 32... Bb4 {[%clk 0:00:04.3]} 33. Rb5 {[%clk 0:00:52.4]}
33... Ke7 {[%clk 0:00:01.6]} 34. Kf1 {[%clk 0:00:52.5]} 1-0

[Event "Early-Titled-Tuesday-Blitz-October-24-2023"]
[Site "Chess.com"]
[Date "2023.10.24"]
[Round "7"]
[White "Savagelittlemole"]
[Black "RETURNOFTHELAGGER"]
[Result "0-1"]
[WhiteElo "2523"]
[BlackElo "2675"]
[TimeControl "180+1"]
[EndTime "9:14:25 PDT"]
[Termination "RETURNOFTHELAGGER won by resignation"]

1. e4 {[%clk 0:03:00.9]} 1... c5 {[%clk 0:03:00]} 2. Ne2 {[%clk 0:03:00.7]} 2...
d6 {[%clk 0:02:55]} 3. g3 {[%clk 0:03:01.1]} 3... h5 {[%clk 0:02:08.2]} 4. h3
{[%clk 0:02:57.2]} 4... e5 {[%clk 0:01:53.2]} 5. Bg2 {[%clk 0:02:54.8]} 5... Nc6
{[%clk 0:01:53.9]} 6. d3 {[%clk 0:02:49.2]} 6... f5 {[%clk 0:01:43.8]} 7. exf5
{[%clk 0:02:44.1]} 7... Bxf5 {[%clk 0:01:44.7]} 8. Nbc3 {[%clk 0:02:41.9]} 8...
Qd7 {[%clk 0:01:42.2]} 9. Bg5 {[%clk 0:02:23.7]} 9... Be7 {[%clk 0:01:39.9]} 10.
Qd2 {[%clk 0:02:19.1]} 10... O-O-O {[%clk 0:01:33]} 11. O-O-O {[%clk 0:02:11.3]}
11... Kb8 {[%clk 0:01:32.8]} 12. Kb1 {[%clk 0:02:10.9]} 12... Bxg5 {[%clk
0:01:28.7]} 13. Qxg5 {[%clk 0:02:10.1]} 13... Nf6 {[%clk 0:01:29.6]} 14. f4
{[%clk 0:01:10.2]} 14... Nh7 {[%clk 0:01:10.7]} 15. Qh4 {[%clk 0:01:03.2]} 15...
exf4 {[%clk 0:01:07.9]} 16. Qxf4 {[%clk 0:01:01.4]} 16... g6 {[%clk 0:01:06.1]}
17. Nd5 {[%clk 0:00:45.1]} 17... Rhe8 {[%clk 0:01:01.7]} 18. Rde1 {[%clk
0:00:40]} 18... Re5 {[%clk 0:00:58.5]} 19. d4 {[%clk 0:00:34.3]} 19... cxd4
{[%clk 0:00:55.8]} 20. Nxd4 {[%clk 0:00:34]} 20... Rde8 {[%clk 0:00:56.4]} 21.
Nxc6+ {[%clk 0:00:17.4]} 21... Qxc6 {[%clk 0:00:56.6]} 22. Rd1 {[%clk
0:00:17.3]} 22... Bxc2+ {[%clk 0:00:54.9]} 23. Ka1 {[%clk 0:00:17.1]} 23... Bxd1
{[%clk 0:00:52.8]} 24. Rxd1 {[%clk 0:00:16.4]} 24... Re1 {[%clk 0:00:48.6]} 25.
Qd2 {[%clk 0:00:14]} 25... R1e2 {[%clk 0:00:44.7]} 26. Ne7 {[%clk 0:00:09.6]}
26... Rxd2 {[%clk 0:00:34]} 27. Nxc6+ {[%clk 0:00:06.2]} 27... bxc6 {[%clk
0:00:34.2]} 0-1

[Event "Early-Titled-Tuesday-Blitz-October-24-2023"]
[Site "Chess.com"]
[Date "2023.10.24"]
[Round "7"]
[White "Alexchess1984"]
[Black "lilleper1"]
[Result "0-1"]
[WhiteElo "2704"]
[BlackElo "2883"]
[TimeControl "180+1"]
[EndTime "9:14:28 PDT"]
[Termination "lilleper1 won by resignation"]

1. e4 {[%clk 0:03:00.6]} 1... c5 {[%clk 0:02:59.6]} 2. c3 {[%clk 0:03:00.5]}
2... Nf6 {[%clk 0:02:58]} 3. e5 {[%clk 0:03:00.5]} 3... Nd5 {[%clk 0:02:58.6]}
4. Bc4 {[%clk 0:03:01.1]} 4... e6 {[%clk 0:02:58.6]} 5. Nf3 {[%clk 0:02:57.5]}
5... d6 {[%clk 0:02:59]} 6. d4 {[%clk 0:02:54.1]} 6... cxd4 {[%clk 0:02:59.9]}
7. cxd4 {[%clk 0:02:49]} 7... Be7 {[%clk 0:02:59.8]} 8. O-O {[%clk 0:02:46.6]}
8... O-O {[%clk 0:03:00]} 9. Qe2 {[%clk 0:02:28.1]} 9... Bd7 {[%clk 0:02:59.1]}
10. Rd1 {[%clk 0:02:26.9]} 10... Bc6 {[%clk 0:02:57.9]} 11. Bd2 {[%clk
0:02:17.1]} 11... Nd7 {[%clk 0:02:56.4]} 12. Nc3 {[%clk 0:02:13.4]} 12... Nxc3
{[%clk 0:02:53.1]} 13. Bxc3 {[%clk 0:02:14.3]} 13... dxe5 {[%clk 0:02:43.5]} 14.
dxe5 {[%clk 0:02:14]} 14... Qc7 {[%clk 0:02:00.5]} 15. Nd4 {[%clk 0:02:02.8]}
15... Nb6 {[%clk 0:02:00.5]} 16. Nxc6 {[%clk 0:01:42.5]} 16... bxc6 {[%clk
0:02:00.4]} 17. Rac1 {[%clk 0:01:25]} 17... Nd5 {[%clk 0:01:55.4]} 18. Bxd5
{[%clk 0:01:15.6]} 18... cxd5 {[%clk 0:01:51]} 19. Bb4 {[%clk 0:01:15.7]} 19...
Qb7 {[%clk 0:01:46.2]} 20. Bxe7 {[%clk 0:01:13.6]} 20... Qxe7 {[%clk 0:01:47.1]}
21. Rc3 {[%clk 0:01:12.1]} 21... a5 {[%clk 0:01:43.8]} 22. Rdc1 {[%clk
0:01:11.5]} 22... a4 {[%clk 0:01:37.4]} 23. Qg4 {[%clk 0:00:52.3]} 23... g6
{[%clk 0:01:24]} 24. Rc7 {[%clk 0:00:49.6]} 24... Qd8 {[%clk 0:01:14.5]} 25. h4
{[%clk 0:00:48.9]} 25... h5 {[%clk 0:01:13.7]} 26. Qf4 {[%clk 0:00:49]} 26...
Rb8 {[%clk 0:00:55.9]} 27. Qxa4 {[%clk 0:00:27.8]} 27... Rxb2 {[%clk 0:00:53.3]}
28. Rd7 {[%clk 0:00:20.2]} 28... Rxa2 {[%clk 0:00:46.1]} 29. Qc6 {[%clk
0:00:07.8]} 29... Qxh4 {[%clk 0:00:44.5]} 30. g3 {[%clk 0:00:06.8]} 30... Qd4
{[%clk 0:00:43.6]} 31. Rf1 {[%clk 0:00:06.9]} 31... Qxe5 {[%clk 0:00:42.8]} 0-1

[Event "Early-Titled-Tuesday-Blitz-October-24-2023"]
[Site "Chess.com"]
[Date "2023.10.24"]
[Round "7"]
[White "SergioMoralesG"]
[Black "GMJustin"]
[Result "1-0"]
[WhiteElo "2402"]
[BlackElo "2218"]
[TimeControl "180+1"]
[EndTime "9:14:29 PDT"]
[Termination "SergioMoralesG won on time"]

1. d4 {[%clk 0:03:00.9]} 1... Nf6 {[%clk 0:02:49.9]} 2. c4 {[%clk 0:03:00.7]}
2... e6 {[%clk 0:02:49.8]} 3. Nf3 {[%clk 0:03:01.2]} 3... c5 {[%clk 0:02:39.6]}
4. d5 {[%clk 0:03:00.5]} 4... d6 {[%clk 0:02:39.1]} 5. Nc3 {[%clk 0:02:59.5]}
5... exd5 {[%clk 0:02:39]} 6. cxd5 {[%clk 0:02:57.7]} 6... g6 {[%clk 0:02:39.2]}
7. h3 {[%clk 0:02:53.3]} 7... Bg7 {[%clk 0:02:32.1]} 8. Bf4 {[%clk 0:02:53.5]}
8... O-O {[%clk 0:02:25.7]} 9. e3 {[%clk 0:02:53.7]} 9... Na6 {[%clk 0:02:20.9]}
10. Bd3 {[%clk 0:02:41.8]} 10... Nc7 {[%clk 0:02:14.3]} 11. Bc4 {[%clk
0:02:41.4]} 11... b5 {[%clk 0:02:09.2]} 12. Bb3 {[%clk 0:02:38.3]} 12... c4
{[%clk 0:02:02.7]} 13. Bc2 {[%clk 0:02:33]} 13... b4 {[%clk 0:01:59.6]} 14. Ne4
{[%clk 0:02:31.4]} 14... Nfxd5 {[%clk 0:01:50.5]} 15. Bxd6 {[%clk 0:02:17]}
15... Re8 {[%clk 0:01:41.3]} 16. Bxc7 {[%clk 0:02:04.9]} 16... Nxc7 {[%clk
0:01:36.8]} 17. Nd6 {[%clk 0:02:05.1]} 17... Bxb2 {[%clk 0:00:48.9]} 18. Nxe8
{[%clk 0:02:02.6]} 18... Bc3+ {[%clk 0:00:48.7]} 19. Kf1 {[%clk 0:01:45.2]}
19... Qxe8 {[%clk 0:00:47.8]} 20. Rb1 {[%clk 0:01:22]} 20... Bb7 {[%clk
0:00:45.9]} 21. Kg1 {[%clk 0:01:12.7]} 21... Rd8 {[%clk 0:00:40.9]} 22. Qe2
{[%clk 0:01:07.9]} 22... a5 {[%clk 0:00:14.5]} 23. Qxc4 {[%clk 0:01:00.9]} 23...
Bxf3 {[%clk 0:00:07.7]} 24. gxf3 {[%clk 0:01:00.1]} 24... Ne6 {[%clk 0:00:03.9]}
25. Kg2 {[%clk 0:00:54.1]} 25... Qe7 {[%clk 0:00:03.6]} 26. h4 {[%clk
0:00:47.4]} 26... Rd2 {[%clk 0:00:02.6]} 27. Bb3 {[%clk 0:00:42.9]} 27... Qd6
{[%clk 0:00:01.9]} 28. Rhd1 {[%clk 0:00:39.4]} 1-0

[Event "Early-Titled-Tuesday-Blitz-October-24-2023"]
[Site "Chess.com"]
[Date "2023.10.24"]
[Round "7"]
[White "alexrustemov"]
[Black "Aslanov_Umid"]
[Result "1-0"]
[WhiteElo "2777"]
[BlackElo "2579"]
[TimeControl "180+1"]
[EndTime "9:14:30 PDT"]
[Termination "alexrustemov won by resignation"]

1. d4 {[%clk 0:03:00.9]} 1... d5 {[%clk 0:03:00.2]} 2. c4 {[%clk 0:03:01.2]}
2... e6 {[%clk 0:03:00.8]} 3. Nc3 {[%clk 0:03:01.5]} 3... Be7 {[%clk 0:03:00.8]}
4. Nf3 {[%clk 0:03:01.5]} 4... Nf6 {[%clk 0:03:00.5]} 5. Bg5 {[%clk 0:03:01.8]}
5... h6 {[%clk 0:02:58.6]} 6. Bxf6 {[%clk 0:03:01.2]} 6... Bxf6 {[%clk
0:02:59.5]} 7. e3 {[%clk 0:03:01.8]} 7... O-O {[%clk 0:02:59.4]} 8. Rc1 {[%clk
0:03:02.3]} 8... c6 {[%clk 0:02:59.5]} 9. Bd3 {[%clk 0:03:02.2]} 9... Nd7 {[%clk
0:02:58.8]} 10. O-O {[%clk 0:03:02.2]} 10... Re8 {[%clk 0:02:59.1]} 11. Qc2
{[%clk 0:03:01.6]} 11... dxc4 {[%clk 0:02:59.3]} 12. Bxc4 {[%clk 0:03:01.7]}
12... e5 {[%clk 0:03:00.1]} 13. Rfd1 {[%clk 0:02:52.5]} 13... exd4 {[%clk
0:02:57.3]} 14. Nxd4 {[%clk 0:02:49.7]} 14... Bxd4 {[%clk 0:02:55.3]} 15. Rxd4
{[%clk 0:02:48.9]} 15... Rf8 {[%clk 0:02:33.7]} 16. Rcd1 {[%clk 0:02:47.9]}
16... Qe7 {[%clk 0:02:31.7]} 17. h3 {[%clk 0:02:36.6]} 17... Nf6 {[%clk
0:02:31.8]} 18. Qd2 {[%clk 0:02:29.3]} 18... Be6 {[%clk 0:02:31.5]} 19. Bxe6
{[%clk 0:02:27.2]} 19... Qxe6 {[%clk 0:02:32.4]} 20. a3 {[%clk 0:02:17.3]} 20...
Qe5 {[%clk 0:02:24]} 21. Qd3 {[%clk 0:01:58.4]} 21... Rfe8 {[%clk 0:02:19.6]}
22. Rd6 {[%clk 0:01:54.6]} 22... Re7 {[%clk 0:01:46.3]} 23. Qd4 {[%clk
0:01:53.7]} 23... Rae8 {[%clk 0:01:43.7]} 24. Qxa7 {[%clk 0:01:51.4]} 24... Nd5
{[%clk 0:00:57.7]} 25. Qc5 {[%clk 0:01:41.4]} 25... Nxc3 {[%clk 0:00:41]} 26.
Qxc3 {[%clk 0:01:40.8]} 26... Qxc3 {[%clk 0:00:36.9]} 27. bxc3 {[%clk
0:01:41.7]} 27... Re5 {[%clk 0:00:36.5]} 28. Rd7 {[%clk 0:01:35.9]} 28... Rc5
{[%clk 0:00:22.6]} 29. Rxb7 {[%clk 0:01:30.9]} 29... Rxc3 {[%clk 0:00:22.7]} 30.
Rdd7 {[%clk 0:01:30.3]} 30... Rf8 {[%clk 0:00:22.1]} 31. a4 {[%clk 0:01:29.4]}
31... Ra3 {[%clk 0:00:21.6]} 32. Ra7 {[%clk 0:01:29]} 32... Ra1+ {[%clk
0:00:17.1]} 33. Kh2 {[%clk 0:01:28.9]} 33... Ra2 {[%clk 0:00:08.1]} 34. Kg3
{[%clk 0:01:28.5]} 34... g5 {[%clk 0:00:07.6]} 35. Rdc7 {[%clk 0:01:27.1]} 35...
Rc2 {[%clk 0:00:07.9]} 36. Ra6 {[%clk 0:01:17.6]} 36... Kg7 {[%clk 0:00:08.2]}
37. Raxc6 {[%clk 0:01:16.7]} 37... Rxc6 {[%clk 0:00:05.9]} 38. Rxc6 {[%clk
0:01:16.8]} 38... Ra8 {[%clk 0:00:06.8]} 39. Rc4 {[%clk 0:01:16]} 39... f5
{[%clk 0:00:07.7]} 40. Kf3 {[%clk 0:01:12.5]} 40... Kf6 {[%clk 0:00:08.3]} 41.
g4 {[%clk 0:01:12.7]} 41... fxg4+ {[%clk 0:00:08]} 42. hxg4 {[%clk 0:01:12.7]}
42... Ke5 {[%clk 0:00:08.8]} 43. Rc6 {[%clk 0:01:10.3]} 43... Rxa4 {[%clk
0:00:08.4]} 44. Rxh6 {[%clk 0:01:10]} 44... Ra2 {[%clk 0:00:08.8]} 45. Rg6
{[%clk 0:01:09.5]} 45... Ra1 {[%clk 0:00:06.6]} 46. Rxg5+ {[%clk 0:01:09.3]}
46... Kf6 {[%clk 0:00:07.5]} 47. Rf5+ {[%clk 0:01:09.5]} 47... Kg6 {[%clk
0:00:08.4]} 1-0

[Event "Early-Titled-Tuesday-Blitz-October-24-2023"]
[Site "Chess.com"]
[Date "2023.10.24"]
[Round "7"]
[White "Boundless_Strike"]
[Black "ContrVersia"]
[Result "1-0"]
[WhiteElo "2637"]
[BlackElo "2884"]
[TimeControl "180+1"]
[EndTime "9:14:32 PDT"]
[Termination "Boundless_Strike won by resignation"]

1. d4 {[%clk 0:02:57.8]} 1... Nf6 {[%clk 0:02:46.1]} 2. f3 {[%clk 0:02:57.9]}
2... d5 {[%clk 0:02:45.8]} 3. e4 {[%clk 0:02:58.5]} 3... dxe4 {[%clk 0:02:44.1]}
4. Nc3 {[%clk 0:02:58.9]} 4... exf3 {[%clk 0:02:44]} 5. Nxf3 {[%clk 0:02:59.2]}
5... Bg4 {[%clk 0:02:44.1]} 6. h3 {[%clk 0:02:59.3]} 6... Bxf3 {[%clk
0:02:44.1]} 7. Qxf3 {[%clk 0:03:00.2]} 7... c6 {[%clk 0:02:44.7]} 8. g4 {[%clk
0:03:00.8]} 8... e6 {[%clk 0:02:43.8]} 9. g5 {[%clk 0:03:01]} 9... Nd5 {[%clk
0:02:43.9]} 10. Bd3 {[%clk 0:03:01.6]} 10... Be7 {[%clk 0:02:38.5]} 11. h4
{[%clk 0:03:01.6]} 11... Nb4 {[%clk 0:02:35.1]} 12. Be4 {[%clk 0:02:31.6]} 12...
Qxd4 {[%clk 0:02:16.2]} 13. Be3 {[%clk 0:02:21.3]} 13... Qe5 {[%clk 0:02:14]}
14. O-O-O {[%clk 0:02:17]} 14... Qa5 {[%clk 0:01:55.7]} 15. Rhf1 {[%clk
0:01:40.8]} 15... O-O {[%clk 0:01:51]} 16. Qh5 {[%clk 0:01:33.3]} 16... g6
{[%clk 0:01:47]} 17. Qh6 {[%clk 0:01:31.1]} 17... Bc5 {[%clk 0:01:18.5]} 18.
Bxc5 {[%clk 0:00:41.2]} 18... Qxc5 {[%clk 0:01:19.4]} 19. h5 {[%clk 0:00:41.2]}
19... Nxa2+ {[%clk 0:01:02.6]} 20. Nxa2 {[%clk 0:00:42.1]} 20... Qe3+ {[%clk
0:01:02.7]} 21. Rd2 {[%clk 0:00:18.3]} 21... Qxe4 {[%clk 0:01:02.5]} 22. Nc3
{[%clk 0:00:19]} 22... Qc4 {[%clk 0:00:52.6]} 23. Rh1 {[%clk 0:00:13.4]} 23...
gxh5 {[%clk 0:00:16.8]} 24. Qxh5 {[%clk 0:00:13.9]} 24... Re8 {[%clk 0:00:13.3]}
25. Qxh7+ {[%clk 0:00:12]} 25... Kf8 {[%clk 0:00:13.7]} 26. Qh8+ {[%clk
0:00:12.7]} 26... Ke7 {[%clk 0:00:14.2]} 27. Qf6+ {[%clk 0:00:13.5]} 1-0

[Event "Early-Titled-Tuesday-Blitz-October-24-2023"]
[Site "Chess.com"]
[Date "2023.10.24"]
[Round "7"]
[White "Magila31"]
[Black "ukchessbomber"]
[Result "1/2-1/2"]
[WhiteElo "2406"]
[BlackElo "2654"]
[TimeControl "180+1"]
[EndTime "9:14:35 PDT"]
[Termination "Game drawn by repetition"]

1. Nf3 {[%clk 0:02:59.6]} 1... a6 {[%clk 0:03:00.9]} 2. g3 {[%clk 0:02:58.2]}
2... b6 {[%clk 0:03:01.8]} 3. Bg2 {[%clk 0:02:58.3]} 3... Bb7 {[%clk 0:03:02.7]}
4. O-O {[%clk 0:02:58.5]} 4... e6 {[%clk 0:03:03.4]} 5. c4 {[%clk 0:02:57.9]}
5... Nf6 {[%clk 0:03:02.5]} 6. Nc3 {[%clk 0:02:57.9]} 6... g6 {[%clk 0:03:03.1]}
7. d4 {[%clk 0:02:57.3]} 7... Bg7 {[%clk 0:03:02.8]} 8. Qc2 {[%clk 0:02:57.5]}
8... O-O {[%clk 0:03:01.5]} 9. e4 {[%clk 0:02:57.1]} 9... d6 {[%clk 0:03:02.2]}
10. Rd1 {[%clk 0:02:56.3]} 10... Nbd7 {[%clk 0:02:58.7]} 11. e5 {[%clk
0:02:53.6]} 11... dxe5 {[%clk 0:02:59.6]} 12. Nxe5 {[%clk 0:02:40.4]} 12... Bxg2
{[%clk 0:02:58.6]} 13. Kxg2 {[%clk 0:02:40.5]} 13... Qc8 {[%clk 0:02:58.2]} 14.
Qe2 {[%clk 0:02:30.4]} 14... Nxe5 {[%clk 0:02:54]} 15. dxe5 {[%clk 0:02:28.8]}
15... Nd7 {[%clk 0:02:54]} 16. f4 {[%clk 0:02:21.2]} 16... Rd8 {[%clk
0:02:53.3]} 17. Be3 {[%clk 0:02:19.2]} 17... Bf8 {[%clk 0:02:52.4]} 18. Qf3
{[%clk 0:02:16.6]} 18... b5 {[%clk 0:02:47.7]} 19. cxb5 {[%clk 0:02:04.1]} 19...
axb5 {[%clk 0:02:48.6]} 20. Nxb5 {[%clk 0:02:01]} 20... Rb8 {[%clk 0:02:47.9]}
21. Qc6 {[%clk 0:01:50.6]} 21... Nb6 {[%clk 0:02:32.4]} 22. Bxb6 {[%clk
0:00:44.1]} 22... Rxd1 {[%clk 0:02:12.6]} 23. Rxd1 {[%clk 0:00:41.1]} 23... Rxb6
{[%clk 0:02:12.6]} 24. Qxc7 {[%clk 0:00:37.9]} 24... Qa8+ {[%clk 0:02:10.1]} 25.
Kh3 {[%clk 0:00:38.1]} 25... Rxb5 {[%clk 0:02:07]} 26. Rd8 {[%clk 0:00:37.1]}
26... Qf3 {[%clk 0:00:18.8]} 27. Rxf8+ {[%clk 0:00:19.4]} 27... Kxf8 {[%clk
0:00:18]} 28. Qd8+ {[%clk 0:00:19.5]} 28... Kg7 {[%clk 0:00:17.9]} 29. Qf6+
{[%clk 0:00:19.5]} 29... Kh6 {[%clk 0:00:17.6]} 30. Qg5+ {[%clk 0:00:19.5]}
30... Kg7 {[%clk 0:00:17.3]} 31. Qf6+ {[%clk 0:00:19.8]} 31... Kg8 {[%clk
0:00:16.7]} 32. Qd8+ {[%clk 0:00:19.3]} 32... Kg7 {[%clk 0:00:15]} 33. Qf6+
{[%clk 0:00:19.2]} 1/2-1/2